fUST/lending_fUST_20250905
["ID","MTS","AMOUNT","RATE_DAILY","PERIOD"]
[383648885,1757067039085,-480.0,0.00013698,2]
[383648886,1757067039094,-480.0,0.00013698,2]
[383648887,1757067039104,-480.0,0.00013698,2]
[383648888,1757067039113,-480.0,0.00013698,2]
[383648889,1757067039123,-480.0,0.00013698,2]
[383648890,1757067039132,-37598.6,0.00013698,2]
[383648891,1757067039143,-480.0,0.00013698,2]
[383648892,1757067039153,-480.0,0.00013698,2]
[383648893,1757067039162,-480.0,0.00013698,2]
[383648894,1757067039171,-480.0,0.00013698,2]
[383648895,1757067039181,-623.2,0.00013698,2]
[383648896,1757067039191,-480.0,0.00013698,2]
[383648897,1757067039200,-480.0,0.00013698,2]
[383648898,1757067039209,-654.64,0.00013698,2]
[383648899,1757067039219,-2544.04,0.00013698,2]
[383648900,1757067039228,-300.330684,0.00013698,2]
[383648901,1757067039237,-480.0,0.00013698,2]
[383648902,1757067039247,-583.38,0.00013698,2]
[383648903,1757067039256,-601.60781438,0.00013698,2]
[383648904,1757067039271,-533.78218562,0.00013698,2]
[383648905,1757067039281,-1196.68,0.00013698,2]
[383648906,1757067039290,-94.48784547,0.00013698,2]
[383648907,1757067039302,-385.51215453,0.00013698,2]
[383648908,1757067039311,-480.0,0.00013698,2]
[383648909,1757067039322,-604.98,0.00013698,2]
[383648910,1757067039331,-586.85097204,0.00013698,2]
[383648911,1757067039341,-480.0,0.00013698,2]
[383648912,1757067039350,-480.0,0.00013698,2]
[383648913,1757067039360,-480.0,0.00013698,2]
[383648914,1757067039369,-480.0,0.00013698,2]
[383648916,1757067039379,-480.0,0.00013698,2]
[383648917,1757067039388,-480.0,0.00013698,2]
[383648918,1757067039398,-568.74752821,0.00013698,2]
[383648919,1757067039407,-480.0,0.00013698,2]
[383648920,1757067039417,-480.0,0.00013698,2]
[383648921,1757067039426,-664.24,0.00013698,2]
[383648922,1757067039435,-831.89,0.00013698,2]
[383648923,1757067039445,-480.0,0.00013698,2]
[383648924,1757067039456,-480.0,0.00013698,2]
[383648925,1757067039465,-480.0,0.00013698,2]
[383648926,1757067039474,-480.0,0.00013698,2]
[383648927,1757067039484,-972.58,0.00013698,2]
[383648928,1757067039495,-571.47,0.00013698,2]
[383648929,1757067039507,-183.03576902,0.00013698,2]
[383648930,1757067039519,-1577.18423098,0.00013698,2]
[383648932,1757067039529,-480.0,0.00013698,2]
[383648933,1757067039539,-795.15,0.00013698,2]
[383648934,1757067039549,-480.0,0.00013698,2]
[383648935,1757067039559,-1003.66576892,0.00013698,2]
[383648936,1757067039571,-983.91423108,0.00013698,2]
[383648937,1757067039581,-139.38576892,0.00013698,2]
[383648954,1757067040093,-340.61423108,0.00013698,2]
[383648955,1757067040104,-480.0,0.00013698,2]
[383648956,1757067040114,-516.35,0.00013698,2]
[383648957,1757067040123,-480.0,0.00013698,2]
[383648958,1757067040132,-480.0,0.00013698,2]
[383648959,1757067040142,-485.15,0.00013698,2]
[383648961,1757067040253,-551.87,0.00013698,2]
[383648962,1757067040263,-210.55988139,0.00013698,2]
[383648963,1757067040274,-269.44011861,0.00013698,2]
[383648964,1757067040284,-480.0,0.00013698,2]
[383648965,1757067040293,-206.14895003,0.00013698,2]
[383648966,1757067040313,-128.92600055,0.00013698,2]
[383648967,1757067040323,-300.50024257,0.00013698,2]
[383648996,1757067042979,-179.49975743,0.00013698,2]
[383648997,1757067042989,-480.0,0.00013698,2]
[383648998,1757067042999,-480.0,0.00013698,2]
[383648999,1757067043009,-484.54,0.00013698,2]
[383649000,1757067043018,-480.0,0.00013698,2]
[383649001,1757067043028,-484.2803269,0.00013698,2]
[383649002,1757067043038,-87.10280348,0.00013698,2]
[383649003,1757067043051,-392.89719652,0.00013698,2]
[383649004,1757067043061,-480.0,0.00013698,2]
[383649005,1757067043071,-592.50287164,0.00013698,2]
[383649006,1757067043080,-1128.81,0.00013698,2]
[383649007,1757067043090,-480.0,0.00013698,2]
[383649008,1757067043100,-585.00476031,0.00013698,2]
[383649009,1757067043109,-706.99,0.00013698,2]
[383649010,1757067043118,-480.0,0.00013698,2]
[383649011,1757067043128,-480.0,0.00013698,2]
[383649012,1757067043137,-529.74,0.00013698,2]
[383649013,1757067043147,-480.0,0.00013698,2]
[383649015,1757067043156,-480.0,0.00013698,2]
[383649017,1757067043165,-480.0,0.00013698,2]
[383649019,1757067043174,-480.0,0.00013698,2]
[383649020,1757067043184,-480.0,0.00013698,2]
[383649021,1757067043193,-4005.33833659,0.00013698,2]
[383649022,1757067043214,-657.59713283,0.00013698,2]
[383649040,1757067046084,-690.3112479,0.00013698,2]
[383649041,1757067046191,-837.61328268,0.00013698,2]
[383649042,1757067046200,-504.12,0.00013698,2]
[383649043,1757067046210,-1006.85,0.00013698,2]
[383649044,1757067046219,-480.0,0.00013698,2]
[383649045,1757067046229,-483.28587927,0.00013698,2]
[383649046,1757067046238,-151.0,0.00013698,2]
[383649047,1757067046247,-151.0,0.00013698,2]
[383649048,1757067046256,-151.0,0.00013698,2]
[383649049,1757067046266,-151.0,0.00013698,2]
[383649050,1757067046275,-1351.21,0.00013698,2]
[383649051,1757067046284,-480.0,0.00013698,2]
[383649052,1757067046293,-151.0,0.00013698,2]
[383649053,1757067046303,-262.580964,0.00013698,2]
[383649054,1757067046312,-480.0,0.00013698,2]
[383649055,1757067046321,-480.0,0.00013698,2]
[383649056,1757067046331,-1444.78,0.00013698,2]
[383649057,1757067046340,-492.77,0.00013698,2]
[383649058,1757067046349,-1224.37,0.00013698,2]
[383649059,1757067046359,-480.0,0.00013698,2]
[383649060,1757067046368,-500.0,0.00013698,2]
[383649061,1757067046377,-583.169727,0.00013699,2]
[383649062,1757067046386,-233.69900493,0.00013872,2]
[383649063,1757067046395,-300.0,0.00013971,2]
[383649064,1757067046404,-300.0,0.00013971,2]
[383649065,1757067046414,-300.0,0.00013971,2]
[383649066,1757067046423,-300.0,0.00013971,2]
[383649067,1757067046433,-300.0,0.00013971,2]
[383649068,1757067046442,-300.0,0.00013971,2]
[383649069,1757067046451,-300.0,0.00013971,2]
[383649070,1757067046460,-300.0,0.00013971,2]
[383649071,1757067046470,-300.0,0.00013971,2]
[383649072,1757067046479,-300.0,0.00013971,2]
[383649073,1757067046488,-300.0,0.00013971,2]
[383649074,1757067046500,-300.0,0.00013971,2]
[383649075,1757067046510,-300.0,0.00013971,2]
[383649076,1757067046519,-300.0,0.00013971,2]
[383649077,1757067046528,-300.0,0.00013971,2]
[383649078,1757067046537,-600.0,0.00013971,2]
[383649079,1757067046548,-500.0,0.00013971,2]
[383649080,1757067046558,-269.78696961,0.00013971,2]
[383649081,1757067046567,-500.0,0.00013971,2]
[383649082,1757067046578,-500.0,0.00013971,2]
[383649083,1757067046587,-500.0,0.00013971,2]
[383649084,1757067046596,-500.0,0.00013971,2]
[383649085,1757067046606,-517.54350583,0.00013971,2]
[383649086,1757067046615,-500.0,0.00013971,2]
[383649087,1757067046625,-500.0,0.00013971,2]
[383649088,1757067046635,-500.0,0.00013971,2]
[383649089,1757067046644,-500.0,0.00013971,2]
[383649090,1757067046654,-500.0,0.00013971,2]
[383649091,1757067046665,-480.0,0.00013972,2]
[383649092,1757067046674,-1069.82403646,0.00013972,2]
[383649093,1757067046683,-480.0,0.00013972,2]
[383649094,1757067046693,-480.0,0.00013972,2]
[383649095,1757067046703,-480.0,0.00013972,2]
[383649096,1757067046712,-480.0,0.00013972,2]
[383649097,1757067046721,-275.67520968,0.00013972,2]
[383649098,1757067046731,-549.82026402,0.00013972,2]
[383649099,1757067046740,-480.0,0.00013972,2]
[383649100,1757067046749,-378.02146242,0.00013972,2]
[383649101,1757067046760,-480.0,0.00013972,2]
[383649102,1757067046770,-480.0,0.00013972,2]
[383649103,1757067046779,-480.0,0.00013972,2]
[383649104,1757067046788,-480.0,0.00013972,2]
[383649105,1757067046798,-480.0,0.00013972,2]
[383649106,1757067046807,-480.0,0.00013972,2]
[383649107,1757067046817,-480.0,0.00013972,2]
[383649108,1757067046826,-480.0,0.00013972,2]
[383649109,1757067046836,-480.0,0.00013972,2]
[383649110,1757067046845,-480.0,0.00013972,2]
[383649111,1757067046854,-480.0,0.00013972,2]
[383649112,1757067046864,-176.63,0.00013972,2]
[383649113,1757067046873,-480.0,0.00013972,2]
[383649114,1757067046883,-480.0,0.00013972,2]
[383649115,1757067046892,-480.0,0.00013972,2]
[383649116,1757067046902,-480.0,0.00013972,2]
[383649117,1757067046911,-157.0,0.00013972,2]
[383649118,1757067046920,-157.0,0.00013972,2]
[383649119,1757067046929,-191.23667509,0.00013972,2]
[383649120,1757067046938,-480.0,0.00013972,2]
[383649121,1757067046947,-157.0,0.00013972,2]
[383649122,1757067046957,-480.0,0.00013972,2]
[383649123,1757067046966,-480.0,0.00013972,2]
[383649124,1757067046975,-291.18906363,0.00013972,2]
[383649125,1757067046984,-480.0,0.00013972,2]
[383649126,1757067046994,-480.0,0.00013972,2]
[383649127,1757067047003,-480.0,0.00013972,2]
[383649128,1757067047012,-480.0,0.00013972,2]
[383649129,1757067047022,-480.0,0.00013972,2]
[383649130,1757067047031,-491.29,0.00013972,2]
[383649131,1757067047041,-480.0,0.00013972,2]
[383649132,1757067047050,-480.0,0.00013972,2]
[383649133,1757067047059,-480.0,0.00013972,2]
[383649134,1757067047068,-480.0,0.00013972,2]
[383649135,1757067047078,-480.0,0.00013972,2]
[383649136,1757067047087,-187.36,0.00013972,2]
[383649137,1757067047097,-570.17761394,0.00013972,2]
[383649138,1757067047106,-480.0,0.00013972,2]
[383649139,1757067047115,-480.0,0.00013972,2]
[383649140,1757067047125,-480.0,0.00013972,2]
[383649141,1757067047242,-480.0,0.00013972,2]
[383649142,1757067047253,-480.0,0.00013972,2]
[383649143,1757067047262,-480.0,0.00013972,2]
[383649144,1757067047272,-480.0,0.00013972,2]
[383649145,1757067047282,-480.0,0.00013972,2]
[383649146,1757067047294,-480.0,0.00013972,2]
[383649147,1757067047305,-480.0,0.00013972,2]
[383649148,1757067047316,-480.0,0.00013972,2]
[383649149,1757067047325,-480.0,0.00013972,2]
[383649150,1757067047333,-480.0,0.00013972,2]
[383649151,1757067047342,-480.56,0.00013972,2]
[383649152,1757067047351,-480.0,0.00013972,2]
[383649153,1757067047360,-480.0,0.00013972,2]
[383649154,1757067047369,-480.0,0.00013972,2]
[383649155,1757067047379,-480.0,0.00013972,2]
[383649156,1757067047388,-157.0,0.00013972,2]
[383649157,1757067047398,-157.0,0.00013972,2]
[383649158,1757067047408,-157.0,0.00013972,2]
[383649159,1757067047418,-199.62668504,0.00013972,2]
[383649160,1757067047427,-480.0,0.00013972,2]
[383649161,1757067047437,-344.74467507,0.00013972,2]
[383649162,1757067047446,-480.0,0.00013972,2]
[383649163,1757067047456,-480.0,0.00013972,2]
[383649164,1757067047466,-480.0,0.00013972,2]
[383649165,1757067047475,-480.0,0.00013972,2]
[383649166,1757067047484,-400.87,0.00013972,2]
[383649167,1757067047495,-480.0,0.00013972,2]
[383649168,1757067047507,-480.0,0.00013972,2]
[383649169,1757067047517,-480.0,0.00013972,2]
[383649170,1757067047526,-156.89,0.00013972,2]
[383649171,1757067047535,-480.0,0.00013972,2]
[383649172,1757067047546,-480.0,0.00013972,2]
[383649173,1757067047556,-346.44504724,0.00013972,2]
[383649174,1757067047566,-480.0,0.00013972,2]
[383649175,1757067047577,-193.2932943,0.00013972,2]
[383649176,1757067047587,-480.0,0.00013972,2]
[383649177,1757067047596,-480.0,0.00013972,2]
[383649178,1757067047606,-480.0,0.00013972,2]
[383649179,1757067047616,-480.0,0.00013972,2]
[383649180,1757067047625,-343.93,0.00013972,2]
[383649181,1757067047635,-480.0,0.00013972,2]
[383649182,1757067047645,-480.0,0.00013972,2]
[383649183,1757067047656,-480.0,0.00013972,2]
[383649184,1757067047666,-480.0,0.00013972,2]
[383649185,1757067047676,-480.0,0.00013972,2]
[383649186,1757067047686,-2365.79,0.00013972,2]
[383649187,1757067047695,-480.0,0.00013972,2]
[383649188,1757067047705,-1465.3,0.00013972,2]
[383649189,1757067047715,-507.54,0.00013972,2]
[383649190,1757067047725,-786.25,0.00013972,2]
[383649191,1757067047734,-812.28,0.00013972,2]
[383649192,1757067047744,-480.0,0.00013972,2]
[383649193,1757067047753,-480.0,0.00013972,2]
[383649194,1757067047763,-480.0,0.00013972,2]
[383649195,1757067047773,-480.0,0.00013972,2]
[383649196,1757067047782,-480.0,0.00013972,2]
[383649197,1757067047792,-480.0,0.00013972,2]
[383649198,1757067047802,-480.0,0.00013972,2]
[383649199,1757067047811,-480.0,0.00013972,2]
[383649200,1757067047820,-480.0,0.00013972,2]
[383649201,1757067047830,-480.0,0.00013972,2]
[383649202,1757067047840,-28297.61565211,0.00013972,2]
[383649203,1757067047859,-9300.98434789,0.00013972,2]
[383649204,1757067047870,-480.0,0.00013972,2]
[383649205,1757067047879,-480.0,0.00013972,2]
[383649206,1757067047888,-480.0,0.00013972,2]
[383649207,1757067047898,-480.0,0.00013972,2]
[383649208,1757067047907,-623.2,0.00013972,2]
[383649209,1757067047916,-480.0,0.00013972,2]
[383649210,1757067047925,-480.0,0.00013972,2]
[383649211,1757067047934,-654.64,0.00013972,2]
[383649212,1757067047943,-2544.04,0.00013972,2]
[383649213,1757067047952,-480.0,0.00013972,2]
[383649214,1757067047962,-583.38,0.00013972,2]
[383649215,1757067047971,-1135.39,0.00013972,2]
[383649216,1757067047980,-1196.68,0.00013972,2]
[383649217,1757067047989,-480.0,0.00013972,2]
[383649218,1757067047998,-480.0,0.00013972,2]
[383649219,1757067048008,-604.98,0.00013972,2]
[383649220,1757067048017,-480.0,0.00013972,2]
[383649221,1757067048026,-150.36,0.00013972,2]
[383649222,1757067048037,-480.0,0.00013972,2]
[383649223,1757067048046,-480.0,0.00013972,2]
[383649224,1757067048055,-480.0,0.00013972,2]
[383649225,1757067048064,-480.0,0.00013972,2]
[383649226,1757067048074,-398.72507251,0.00013972,2]
[383649227,1757067048084,-480.0,0.00013972,2]
[383649228,1757067048093,-664.24,0.00013972,2]
[383649229,1757067048103,-831.89,0.00013972,2]
[383649230,1757067048112,-480.0,0.00013972,2]
[383649231,1757067048122,-500.0,0.00013972,2]
[383649232,1757067048132,-480.0,0.00013972,2]
[383649233,1757067048141,-480.0,0.00013972,2]
[383649234,1757067048151,-473.88690357,0.00013972,2]
[383649235,1757067048161,-972.58,0.00013972,2]
[383649236,1757067048171,-1760.22,0.00013972,2]
[383649237,1757067048180,-397.5718485,0.00013972,2]
[383649238,1757067048190,-795.15,0.00013972,2]
[383649239,1757067048200,-480.0,0.00013972,2]
[383649240,1757067048209,-1987.58,0.00013972,2]
[383649241,1757067048218,-480.0,0.00013972,2]
[383649242,1757067048228,-480.0,0.00013972,2]
[383649243,1757067048238,-198.04,0.00013972,2]
[383649244,1757067048247,-480.0,0.00013972,2]
[383649245,1757067048256,-485.15,0.00013972,2]
[383649246,1757067048266,-551.87,0.00013972,2]
[383649247,1757067048275,-480.0,0.00013972,2]
[383649248,1757067048285,-480.0,0.00013972,2]
[383649249,1757067048297,-480.0,0.00013972,2]
[383649250,1757067048311,-480.0,0.00013972,2]
[383649251,1757067048321,-343.03,0.00013972,2]
[383649252,1757067048331,-484.54,0.00013972,2]
[383649253,1757067048341,-398.05,0.00013972,2]
[383649254,1757067048351,-480.0,0.00013972,2]
[383649255,1757067048361,-480.0,0.00013972,2]
[383649256,1757067048371,-1128.81,0.00013972,2]
[383649257,1757067048381,-480.0,0.00013972,2]
[383649258,1757067048391,-706.99,0.00013972,2]
[383649259,1757067048401,-480.0,0.00013972,2]
[383649260,1757067048410,-480.0,0.00013972,2]
[383649261,1757067048419,-529.74,0.00013972,2]
[383649262,1757067048429,-480.0,0.00013972,2]
[383649263,1757067048438,-480.0,0.00013972,2]
[383649264,1757067048448,-157.0,0.00013972,2]
[383649265,1757067048457,-157.0,0.00013972,2]
[383649266,1757067048467,-157.0,0.00013972,2]
[383649267,1757067048476,-474.0,0.00013972,2]
[383649268,1757067048485,-480.0,0.00013972,2]
[383649269,1757067048495,-6190.86,0.00013972,2]
[383649270,1757067048507,-504.12,0.00013972,2]
[383649271,1757067048516,-1006.85,0.00013972,2]
[383649272,1757067048525,-480.0,0.00013972,2]
[383649273,1757067048534,-151.0,0.00013972,2]
[383649274,1757067048545,-151.0,0.00013972,2]
[383649275,1757067048554,-151.0,0.00013972,2]
[383649276,1757067048564,-151.0,0.00013972,2]
[383649277,1757067048574,-1351.21,0.00013972,2]
[383649278,1757067048584,-480.0,0.00013972,2]
[383649279,1757067048593,-151.0,0.00013972,2]
[383649280,1757067048603,-151.0,0.00013972,2]
[383649281,1757067048612,-469.97959364,0.00013972,2]
[383649282,1757067048621,-480.0,0.00013972,2]
[383649283,1757067048630,-1444.78,0.00013972,2]
[383649284,1757067048640,-492.77,0.00013972,2]
[383649285,1757067048649,-1224.37,0.00013972,2]
[383649286,1757067048659,-480.0,0.00013972,2]
[383649287,1757067048668,-500.0,0.00013973,2]
[383649288,1757067048677,-501.93049493,0.00013973,2]
[383649289,1757067048687,-224.00413501,0.00013973,2]
[383649290,1757067048696,-500.0,0.00013973,2]
[383649291,1757067048706,-501.03182791,0.00013973,2]
[383649292,1757067048715,-300.63066952,0.00013973,2]
[383649293,1757067048725,-500.74239118,0.00013973,2]
[383649294,1757067048734,-500.0,0.00013973,2]
[383649295,1757067048743,-431.73337616,0.00013973,2]
[383649296,1757067048753,-273.174221,0.00013973,2]
[383649297,1757067048762,-500.0,0.00013973,2]
[383649298,1757067048772,-500.0,0.00013973,2]
[383649299,1757067048782,-500.0,0.00013973,2]
[383649300,1757067048791,-500.0,0.00013973,2]
[383649301,1757067048800,-500.0,0.00013973,2]
[383649302,1757067048811,-352.88141392,0.00013973,2]
[383649303,1757067048821,-504.11039704,0.00013973,2]
[383649304,1757067048831,-500.0,0.00013973,2]
[383649305,1757067048840,-500.0,0.00013973,2]
[383649306,1757067048849,-500.0,0.00013973,2]
[383649307,1757067048858,-500.0,0.00013973,2]
[383649308,1757067048866,-500.0,0.00013973,2]
[383649309,1757067048875,-500.0,0.00013973,2]
[383649310,1757067048884,-573.76073197,0.00013973,2]
[383649311,1757067048894,-506.21798194,0.00013973,2]
[383649312,1757067048903,-500.0,0.00013973,2]
[383649313,1757067048913,-500.0,0.00013973,2]
[383649314,1757067048923,-500.0,0.00013973,2]
[383649315,1757067048933,-500.0,0.00013973,2]
[383649316,1757067048943,-157.55,0.00013973,2]
[383649317,1757067048952,-17664.07966398,0.00014043,2]
[383649318,1757067048962,-308.0,0.00014104,2]
[383649319,1757067048972,-160.0,0.00014108,2]
[383649320,1757067048982,-530.48792916,0.00014108,2]
[383649321,1757067048992,-160.0,0.00014108,2]
[383649322,1757067049001,-160.0,0.00014108,2]
[383649323,1757067049011,-203.18701864,0.00014108,2]
[383649324,1757067049020,-160.0,0.00014108,2]
[383649325,1757067049030,-217.560113,0.00014108,2]
[383649326,1757067049040,-160.0,0.00014108,2]
[383649327,1757067049049,-846.49761657,0.00014108,2]
[383649328,1757067049059,-160.0,0.00014108,2]
[383649329,1757067049068,-160.0,0.00014108,2]
[383649330,1757067049078,-417.15472785,0.00014108,2]
[383649331,1757067049088,-232.96244142,0.00014108,2]
[383649332,1757067049097,-442.53,0.00014126,2]
[383649333,1757067049107,-425.254,0.00014126,2]
[383649334,1757067049116,-3778.82,0.00014244,2]
[383649335,1757067049125,-158.39719745,0.00014246,2]
[383649336,1757067049135,-157.0,0.00014246,2]
[383649337,1757067049144,-176.25824784,0.00014246,2]
[383649338,1757067049154,-168.30577417,0.00014246,2]
[383649339,1757067049163,-157.0,0.00014246,2]
[383649340,1757067049172,-285.95910825,0.00014246,2]
[383649341,1757067049181,-500.0,0.00014246,2]
[383649342,1757067049190,-157.0,0.00014246,2]
[383649343,1757067049199,-165.51658264,0.00014246,2]
[383649344,1757067049208,-157.0,0.00014246,2]
[383649345,1757067049218,-474.0,0.00014246,2]
[383649346,1757067049227,-480.0,0.00014246,2]
[383649347,1757067049237,-480.0,0.00014246,2]
[383649348,1757067049246,-512.9,0.00014246,2]
[383649349,1757067049255,-480.0,0.00014246,2]
[383649350,1757067049351,-480.0,0.00014246,2]
[383649351,1757067049361,-281.25,0.00014246,2]
[383649352,1757067049372,-318.3,0.00014246,2]
[383649353,1757067049382,-482.59341323,0.00014246,2]
[383649354,1757067049393,-480.0,0.00014246,2]
[383649355,1757067049403,-480.0,0.00014246,2]
[383649356,1757067049413,-480.0,0.00014246,2]
[383649357,1757067049424,-480.0,0.00014246,2]
[383649358,1757067049433,-480.0,0.00014246,2]
[383649359,1757067049443,-341.23483368,0.00014246,2]
[383649360,1757067049453,-197.08863068,0.00014246,2]
[383649361,1757067049462,-480.0,0.00014246,2]
[383649362,1757067049472,-480.0,0.00014246,2]
[383649363,1757067049483,-480.0,0.00014246,2]
[383649364,1757067049495,-480.0,0.00014246,2]
[383649365,1757067049508,-480.0,0.00014246,2]
[383649366,1757067049518,-480.0,0.00014246,2]
[383649367,1757067049529,-480.0,0.00014246,2]
[383649368,1757067049539,-480.0,0.00014246,2]
[383649369,1757067049549,-491.29,0.00014246,2]
[383649370,1757067049561,-480.0,0.00014246,2]
[383649371,1757067049571,-480.0,0.00014246,2]
[383649372,1757067049584,-480.0,0.00014246,2]
[383649373,1757067049595,-480.0,0.00014246,2]
[383649374,1757067049607,-303.94,0.00014246,2]
[383649375,1757067049617,-213.44,0.00014246,2]
[383649376,1757067049629,-480.0,0.00014246,2]
[383649377,1757067049638,-480.0,0.00014246,2]
[383649378,1757067049648,-480.0,0.00014246,2]
[383649379,1757067049657,-243.59,0.00014246,2]
[383649380,1757067049667,-480.0,0.00014246,2]
[383649381,1757067049677,-480.0,0.00014246,2]
[383649382,1757067049687,-480.0,0.00014246,2]
[383649383,1757067049696,-480.0,0.00014246,2]
[383649384,1757067049705,-480.0,0.00014246,2]
[383649385,1757067049715,-480.0,0.00014246,2]
[383649386,1757067049724,-480.0,0.00014246,2]
[383649387,1757067049734,-480.0,0.00014246,2]
[383649388,1757067049744,-480.0,0.00014246,2]
[383649389,1757067049755,-480.0,0.00014246,2]
[383649390,1757067049764,-480.0,0.00014246,2]
[383649391,1757067049774,-480.0,0.00014246,2]
[383649392,1757067049785,-480.0,0.00014246,2]
[383649393,1757067049794,-480.0,0.00014246,2]
[383649394,1757067049805,-480.0,0.00014246,2]
[383649395,1757067049815,-480.0,0.00014246,2]
[383649396,1757067049825,-480.0,0.00014246,2]
[383649397,1757067049835,-480.0,0.00014246,2]
[383649398,1757067049847,-480.0,0.00014246,2]
[383649399,1757067049857,-480.0,0.00014246,2]
[383649400,1757067049867,-480.0,0.00014246,2]
[383649401,1757067049877,-480.0,0.00014246,2]
[383649402,1757067049887,-480.0,0.00014246,2]
[383649403,1757067049896,-480.0,0.00014246,2]
[383649404,1757067049906,-480.0,0.00014246,2]
[383649405,1757067049915,-519.17,0.00014246,2]
[383649406,1757067049926,-480.0,0.00014246,2]
[383649407,1757067049936,-480.0,0.00014246,2]
[383649408,1757067049947,-2365.79,0.00014246,2]
[383649409,1757067049956,-480.0,0.00014246,2]
[383649410,1757067049968,-1465.3,0.00014246,2]
[383649411,1757067049978,-507.54,0.00014246,2]
[383649412,1757067049988,-786.25,0.00014246,2]
[383649413,1757067049998,-812.28,0.00014246,2]
[383649414,1757067050009,-480.0,0.00014246,2]
[383649415,1757067050018,-480.0,0.00014246,2]
[383649416,1757067050027,-480.0,0.00014246,2]
[383649417,1757067050037,-480.0,0.00014246,2]
[383649418,1757067050047,-480.0,0.00014246,2]
[383649419,1757067050056,-480.0,0.00014246,2]
[383649420,1757067050066,-480.0,0.00014246,2]
[383649421,1757067050076,-205.93,0.00014246,2]
[383649422,1757067050085,-480.0,0.00014246,2]
[383649423,1757067050095,-37598.6,0.00014246,2]
[383649424,1757067050104,-480.0,0.00014246,2]
[383649425,1757067050114,-480.0,0.00014246,2]
[383649426,1757067050126,-480.0,0.00014246,2]
[383649427,1757067050135,-480.0,0.00014246,2]
[383649428,1757067050146,-480.0,0.00014246,2]
[383649429,1757067050155,-623.2,0.00014246,2]
[383649430,1757067050164,-480.0,0.00014246,2]
[383649431,1757067050174,-480.0,0.00014246,2]
[383649432,1757067050183,-654.64,0.00014246,2]
[383649433,1757067050192,-2544.04,0.00014246,2]
[383649434,1757067050202,-480.0,0.00014246,2]
[383649435,1757067050212,-583.38,0.00014246,2]
[383649436,1757067050222,-1135.39,0.00014246,2]
[383649437,1757067050231,-1196.68,0.00014246,2]
[383649438,1757067050241,-480.0,0.00014246,2]
[383649439,1757067050253,-458.80408292,0.00014246,2]
[383649440,1757067050263,-604.98,0.00014246,2]
[383649441,1757067050275,-480.0,0.00014246,2]
[383649442,1757067050284,-480.0,0.00014246,2]
[383649443,1757067050294,-480.0,0.00014246,2]
[383649444,1757067050303,-480.0,0.00014246,2]
[383649445,1757067050315,-480.0,0.00014246,2]
[383649446,1757067050326,-480.0,0.00014246,2]
[383649447,1757067050338,-664.24,0.00014246,2]
[383649448,1757067050354,-831.89,0.00014246,2]
[383649449,1757067050368,-480.0,0.00014246,2]
[383649450,1757067050384,-480.0,0.00014246,2]
[383649451,1757067050397,-480.0,0.00014246,2]